[Event "MČR juniorů a juniorek v rapid šachu 2024"]
[Site "Hotel Fit Fun, Harrachov, Czech Republic"]
[Date "2024.09.21"]
[Round "6.4"]
[White "Rousek Jan"]
[Black "Markina Sofiia"]
[Result "0-1"]
[TimeControl "20+5"]
[WhiteFideId "386669"]
[BlackFideId "23744014"]
[WhiteElo "1958"]
[BlackElo "1885"]

1. d4 {[%clk 00:20:06]} {[%emt 00:00:02]} d5 {[%clk 00:20:10]} 2. Nf3 {[%clk
00:20:07]} {[%emt 00:00:04]} Nf6 {[%clk 00:20:13]} {[%emt 00:00:04]} 3. g3
{[%clk 00:20:09]} {[%emt 00:00:02]} e6 {[%clk 00:20:01]} {[%emt 00:00:17]} 4.
Bg2 {[%clk 00:20:09]} {[%emt 00:00:04]} Be7 {[%clk 00:20:04]} {[%emt 00:00:03]}
5. O-O {[%clk 00:20:10]} {[%emt 00:00:03]} O-O {[%clk 00:20:08]} {[%emt
00:00:02]} 6. c4 {[%clk 00:20:13]} {[%emt 00:00:02]} dxc4 {[%clk 00:20:12]}
{[%emt 00:00:02]} 7. Qc2 {[%clk 00:19:42]} {[%emt 00:00:35]} a6 {[%clk
00:20:14]} {[%emt 00:00:04]} 8. a4 {[%clk 00:19:44]} {[%emt 00:00:02]} Bd7
{[%clk 00:19:02]} {[%emt 00:01:17]} 9. Rd1 {[%clk 00:18:07]} {[%emt 00:01:41]}
Bc6 {[%clk 00:19:00]} {[%emt 00:00:08]} 10. Nc3 {[%clk 00:18:08]} {[%emt
00:00:04]} Nbd7 {[%clk 00:18:59]} {[%emt 00:00:06]} 11. e4 {[%clk 00:17:59]}
{[%emt 00:00:13]} Nb6 {[%clk 00:18:31]} {[%emt 00:00:35]} 12. Bg5 {[%clk
00:14:03]} {[%emt 00:03:59]} Ne8 {[%clk 00:16:23]} {[%emt 00:02:13]} 13. Bxe7
{[%clk 00:12:58]} {[%emt 00:01:10]} Qxe7 {[%clk 00:16:27]} {[%emt 00:00:02]} 14.
d5 {[%clk 00:12:42]} {[%emt 00:00:20]} Bd7 {[%clk 00:16:30]} {[%emt 00:00:04]}
15. Ne5 {[%clk 00:11:26]} {[%emt 00:01:20]} Bc8 {[%clk 00:16:11]} {[%emt
00:00:24]} 16. a5 {[%clk 00:10:56]} {[%emt 00:00:35]} exd5 {[%clk 00:15:40]}
{[%emt 00:00:37]} 17. axb6 {[%clk 00:10:06]} {[%emt 00:00:55]} Qxe5 {[%clk
00:15:10]} {[%emt 00:00:34]} 18. Nxd5 {[%clk 00:08:50]} {[%emt 00:01:20]} c6
{[%clk 00:14:54]} {[%emt 00:00:22]} 19. Ne3 {[%clk 00:07:49]} {[%emt 00:01:05]}
Nd6 {[%clk 00:14:26]} {[%emt 00:00:34]} 20. Qc3 {[%clk 00:06:30]} {[%emt
00:01:24]} Qxc3 {[%clk 00:13:08]} {[%emt 00:01:23]} 21. bxc3 {[%clk 00:06:33]}
{[%emt 00:00:02]} Nb5 {[%clk 00:13:12]} 22. Nxc4 {[%clk 00:05:44]} {[%emt
00:00:53]} Nxc3 {[%clk 00:13:02]} {[%emt 00:00:17]} 23. Rd3 {[%clk 00:05:43]}
{[%emt 00:00:04]} Nb5 {[%clk 00:12:49]} {[%emt 00:00:16]} 24. Na5 {[%clk
00:05:01]} {[%emt 00:00:50]} Rb8 {[%clk 00:12:30]} {[%emt 00:00:25]} 25. Rad1
{[%clk 00:04:39]} {[%emt 00:00:23]} Be6 {[%clk 00:12:28]} {[%emt 00:00:10]} 26.
e5 {[%clk 00:04:26]} {[%emt 00:00:18]} Bf5 {[%clk 00:11:53]} {[%emt 00:00:40]}
27. R3d2 {[%clk 00:02:52]} {[%emt 00:01:37]} Nc3 {[%clk 00:11:48]} {[%emt
00:00:12]} 28. Ra1 {[%clk 00:02:34]} {[%emt 00:00:19]} Rfe8 {[%clk 00:11:03]}
{[%emt 00:00:54]} 29. f4 {[%emt 00:00:12]} Be4 {[%clk 00:10:24]} {[%emt
00:00:43]} 30. Bxe4 {[%clk 00:02:01]} {[%emt 00:00:32]} Nxe4 {[%clk 00:10:27]}
{[%emt 00:00:02]} 31. Rd7 {[%clk 00:01:10]} {[%emt 00:00:55]} Nc5 {[%clk
00:10:31]} {[%emt 00:00:03]} 32. Rd4 {[%clk 00:01:08]} {[%emt 00:00:06]} Red8
{[%clk 00:09:45]} {[%emt 00:00:51]} 33. Rad1 {[%clk 00:01:11]} {[%emt
00:00:01]} Ne6 {[%clk 00:09:49]} {[%emt 00:00:02]} 34. Rd7 {[%clk 00:00:45]}
{[%emt 00:00:31]} Rxd7 {[%clk 00:09:47]} {[%emt 00:00:08]} 35. Rxd7 {[%clk
00:00:48]} {[%emt 00:00:02]} Nc5 {[%clk 00:09:50]} 36. Rc7 {[%clk 00:00:15]}
{[%emt 00:00:38]} Kf8 {[%clk 00:09:07]} {[%emt 00:00:49]} 37. Kf2 {[%clk
00:00:19]} {[%emt 00:00:01]} Na4 {[%clk 00:08:14]} {[%emt 00:00:58]} 38. Nc4
{[%clk 00:00:22]} {[%emt 00:00:02]} Nc5 {[%clk 00:07:28]} {[%emt 00:00:50]} 39.
Nd6 {[%clk 00:00:19]} {[%emt 00:00:07]} f6 {[%clk 00:07:23]} {[%emt 00:00:12]}
40. exf6 {[%clk 00:00:17]} {[%emt 00:00:07]} gxf6 {[%clk 00:07:24]} {[%emt
00:00:03]} 41. Rxh7 {[%clk 00:00:16]} {[%emt 00:00:07]} Kg8 {[%clk 00:07:24]}
{[%emt 00:00:04]} 42. Re7 {[%clk 00:00:13]} {[%emt 00:00:07]} a5 {[%clk
00:07:10]} {[%emt 00:00:20]} 43. Re3 {[%clk 00:00:07]} {[%emt 00:00:10]} a4
{[%clk 00:07:10]} {[%emt 00:00:07]} 44. h4 {[%clk 00:00:09]} {[%emt 00:00:02]}
Rd8 {[%clk 00:07:12]} {[%emt 00:00:03]} 45. Nc4 {[%clk 00:00:11]} {[%emt
00:00:04]} Nd3+ {[%clk 00:07:11]} {[%emt 00:00:06]} 46. Kf3 {[%clk 00:00:09]}
{[%emt 00:00:06]} Rd4 {[%clk 00:06:57]} {[%emt 00:00:18]} 47. Na5 {[%clk
00:00:13]} {[%emt 00:00:02]} Nc5 {[%clk 00:06:48]} {[%emt 00:00:15]} 48. Ra3
{[%clk 00:00:13]} {[%emt 00:00:06]} Rb4 {[%clk 00:06:48]} {[%emt 00:00:05]} 49.
h5 {[%clk 00:00:15]} {[%emt 00:00:02]} Rxb6 {[%clk 00:06:52]} {[%emt 00:00:02]}
50. Nc4 {[%clk 00:00:18]} Rb3+ {[%clk 00:06:47]} {[%emt 00:00:10]} 51. Rxb3
{[%clk 00:00:22]} {[%emt 00:00:01]} Nxb3 {[%clk 00:06:42]} {[%emt 00:00:10]} 52.
Ke3 {[%clk 00:00:23]} {[%emt 00:00:05]} b5 {[%clk 00:06:46]} 53. Na3 {[%clk
00:00:06]} {[%emt 00:00:21]} b4 {[%clk 00:06:50]} {[%emt 00:00:02]} 54. Nc2
{[%clk 00:00:09]} {[%emt 00:00:02]} c5 {[%clk 00:06:51]} {[%emt 00:00:04]} 55.
Kd3 {[%clk 00:00:12]} {[%emt 00:00:01]} a3 {[%clk 00:06:53]} {[%emt 00:00:03]}
56. Kc4 {[%clk 00:00:16]} {[%emt 00:00:01]} Nd4 {[%clk 00:06:45]} {[%emt
00:00:13]} 0-1



[ePGN "0.1;DGT LiveChess/2.2.6"]

[Event "MČR juniorů a juniorek v rapid šachu 2024"]
[Site "Hotel Fit Fun, Harrachov, Czech Republic"]
[Date "2024.09.21"]
[Round "6.5"]
[White "Pejrimovska Viola Ruby"]
[Black "Slaby Matej"]
[Result "1-0"]
[TimeControl "20+5"]
[WhiteFideId "23709529"]
[BlackFideId "23734876"]
[WhiteElo "1876"]
[BlackElo "1948"]

1. e4 {[%clk 00:20:08]} {[%emt 00:00:02]} c6 {[%clk 00:20:09]} {[%emt
00:00:02]} 2. d4 {[%clk 00:20:10]} {[%emt 00:00:03]} d5 {[%clk 00:20:12]} 3. e5
{[%clk 00:20:14]} {[%emt 00:00:01]} Bf5 {[%clk 00:20:16]} {[%emt 00:00:02]} 4.
h4 {[%clk 00:20:17]} {[%emt 00:00:01]} h5 {[%clk 00:20:19]} {[%emt 00:00:02]} 5.
Ne2 {[%clk 00:20:21]} {[%emt 00:00:02]} e6 {[%clk 00:20:20]} {[%emt 00:00:04]}
6. Ng3 {[%clk 00:20:23]} {[%emt 00:00:02]} Bg6 {[%clk 00:20:24]} {[%emt
00:00:01]} 7. c4 {[%clk 00:20:25]} {[%emt 00:00:03]} Ne7 {[%clk 00:20:08]}
{[%emt 00:00:21]} 8. Bg5 {[%clk 00:19:57]} {[%emt 00:00:33]} Qb6 {[%clk
00:19:45]} {[%emt 00:00:28]} 9. Nc3 {[%clk 00:17:54]} {[%emt 00:02:08]} dxc4
{[%clk 00:19:23]} {[%emt 00:00:27]} 10. Bxc4 {[%clk 00:16:15]} {[%emt
00:01:45]} Nd5 {[%clk 00:18:01]} {[%emt 00:01:27]} 11. O-O {[%clk 00:15:11]}
{[%emt 00:01:08]} Nxc3 {[%clk 00:17:22]} {[%emt 00:00:44]} 12. bxc3 {[%clk
00:15:13]} {[%emt 00:00:03]} Na6 {[%clk 00:16:32]} {[%emt 00:00:56]} 13. f4
{[%clk 00:14:38]} {[%emt 00:00:40]} Nc7 {[%clk 00:15:32]} {[%emt 00:01:05]} 14.
f5 {[%clk 00:13:01]} {[%emt 00:01:42]} exf5 {[%clk 00:15:35]} {[%emt 00:00:02]}
15. Rb1 {[%clk 00:12:50]} {[%emt 00:00:16]} Qa5 {[%clk 00:15:32]} {[%emt
00:00:08]} 16. Rxb7 {[%clk 00:12:21]} {[%emt 00:00:34]} Qxc3 {[%clk 00:13:23]}
{[%emt 00:02:14]} 17. Qa4 {[%clk 00:11:04]} {[%emt 00:01:22]} Kd7 {[%clk
00:09:36]} {[%emt 00:03:51]} 18. Ne2 {[%clk 00:10:37]} {[%emt 00:00:32]} 1-0



[ePGN "0.1;DGT LiveChess/2.2.6"]

[Event "MČR juniorů a juniorek v rapid šachu 2024"]
[Site "Hotel Fit Fun, Harrachov, Czech Republic"]
[Date "2024.09.21"]
[Round "6.6"]
[White "Hozda Max"]
[Black "Jun Rudolf"]
[Result "1/2-1/2"]
[TimeControl "20+5"]
[WhiteFideId "23725958"]
[BlackFideId "376612"]
[WhiteElo "1939"]
[BlackElo "2142"]

1. Nf3 {[%clk 00:20:06]} {[%emt 00:00:04]} c5 {[%clk 00:20:08]} {[%emt
00:00:03]} 2. e3 {[%clk 00:20:05]} {[%emt 00:00:05]} Nc6 {[%clk 00:20:11]}
{[%emt 00:00:03]} 3. b3 {[%clk 00:20:05]} {[%emt 00:00:05]} b6 {[%clk
00:20:13]} {[%emt 00:00:03]} 4. Bb2 {[%clk 00:20:08]} {[%emt 00:00:02]} Bb7
{[%clk 00:20:17]} {[%emt 00:00:01]} 5. c4 {[%clk 00:20:05]} {[%emt 00:00:08]}
Nf6 {[%clk 00:20:19]} {[%emt 00:00:03]} 6. Nc3 {[%clk 00:20:07]} {[%emt
00:00:02]} e6 {[%clk 00:19:52]} {[%emt 00:00:33]} 7. d4 {[%clk 00:19:25]}
{[%emt 00:00:46]} cxd4 {[%clk 00:19:55]} {[%emt 00:00:03]} 8. Nxd4 {[%clk
00:19:26]} {[%emt 00:00:03]} Be7 {[%clk 00:19:48]} {[%emt 00:00:13]} 9. Be2
{[%clk 00:18:47]} {[%emt 00:00:45]} Nxd4 {[%clk 00:19:31]} {[%emt 00:00:22]} 10.
Qxd4 {[%clk 00:18:46]} {[%emt 00:00:05]} O-O {[%clk 00:18:41]} {[%emt
00:00:54]} 11. O-O {[%clk 00:18:28]} {[%emt 00:00:23]} d6 {[%clk 00:18:00]}
{[%emt 00:00:47]} 12. Rfd1 {[%clk 00:18:05]} {[%emt 00:00:28]} Qd7 {[%clk
00:17:41]} {[%emt 00:00:24]} 13. e4 {[%clk 00:16:01]} {[%emt 00:02:08]} Rfd8
{[%clk 00:14:45]} {[%emt 00:03:02]} 14. e5 {[%clk 00:15:17]} {[%emt 00:00:49]}
dxe5 {[%clk 00:13:26]} {[%emt 00:01:24]} 15. Qxe5 {[%clk 00:15:14]} {[%emt
00:00:07]} Bd6 {[%clk 00:11:57]} {[%emt 00:01:33]} 16. Qg5 {[%clk 00:14:46]}
{[%emt 00:00:34]} h6 {[%clk 00:11:36]} {[%emt 00:00:26]} 17. Qh4 {[%clk
00:14:13]} {[%emt 00:00:38]} Qe7 {[%clk 00:10:46]} {[%emt 00:00:55]} 18. a3
{[%clk 00:08:42]} {[%emt 00:05:37]} Be5 {[%clk 00:09:58]} {[%emt 00:00:53]} 19.
b4 {[%clk 00:06:54]} {[%emt 00:01:53]} Rxd1+ {[%clk 00:09:47]} {[%emt
00:00:16]} 20. Rxd1 {[%clk 00:06:23]} {[%emt 00:00:36]} Rd8 {[%clk 00:09:51]}
{[%emt 00:00:01]} 21. Qh3 {[%clk 00:03:21]} {[%emt 00:03:07]} Rxd1+ {[%clk
00:07:53]} {[%emt 00:02:03]} 22. Nxd1 {[%clk 00:03:23]} {[%emt 00:00:03]} Bxb2
{[%clk 00:07:16]} {[%emt 00:00:41]} 23. Nxb2 {[%clk 00:03:23]} {[%emt
00:00:05]} Ne4 {[%clk 00:07:01]} {[%emt 00:00:21]} 24. Qd3 {[%clk 00:02:45]}
{[%emt 00:00:44]} Nxf2 {[%clk 00:03:19]} {[%emt 00:03:46]} 25. Qd4 {[%clk
00:00:59]} {[%emt 00:01:51]} Ne4 {[%clk 00:02:46]} {[%emt 00:00:38]} 26. Bf3
{[%clk 00:00:58]} {[%emt 00:00:06]} f5 {[%clk 00:01:19]} {[%emt 00:01:32]} 27.
Nd3 {[%clk 00:00:59]} {[%emt 00:00:04]} Qd6 {[%clk 00:00:26]} {[%emt 00:00:58]}
28. Qxd6 {[%clk 00:00:56]} {[%emt 00:00:08]} Nxd6 {[%clk 00:00:29]} {[%emt
00:00:02]} 29. c5 {[%clk 00:00:40]} {[%emt 00:00:21]} Ne4 {[%clk 00:00:30]}
{[%emt 00:00:04]} 30. Bxe4 {[%clk 00:00:30]} {[%emt 00:00:15]} Bxe4 {[%clk
00:00:18]} {[%emt 00:00:18]} 31. Ne5 {[%clk 00:00:33]} bxc5 {[%clk 00:00:14]}
{[%emt 00:00:09]} 32. bxc5 {[%clk 00:00:36]} {[%emt 00:00:02]} Kf8 {[%clk
00:00:17]} 33. Kf2 {[%clk 00:00:30]} {[%emt 00:00:11]} Ke7 {[%clk 00:00:16]}
{[%emt 00:00:06]} 34. g3 {[%clk 00:00:19]} {[%emt 00:00:17]} Kf6 {[%clk
00:00:14]} {[%emt 00:00:07]} 35. Nd7+ {[%clk 00:00:19]} {[%emt 00:00:05]} Ke7
{[%clk 00:00:11]} {[%emt 00:00:08]} 36. Ne5 {[%clk 00:00:23]} {[%emt 00:00:01]}
Kf6 {[%clk 00:00:08]} {[%emt 00:00:09]} 37. Nd7+ {[%clk 00:00:26]} {[%emt
00:00:01]} Ke7 {[%clk 00:00:12]} 38. Ne5 {[%clk 00:00:30]} {[%emt 00:00:01]} g5
{[%clk 00:00:07]} {[%emt 00:00:10]} 39. Ke3 {[%clk 00:00:31]} {[%emt 00:00:05]}
Bd5 {[%clk 00:00:08]} {[%emt 00:00:03]} 40. h4 {[%clk 00:00:33]} {[%emt
00:00:03]} f4+ {[%emt 00:00:27]} 1/2-1/2



[ePGN "0.1;DGT LiveChess/2.2.6"]

[Event "MČR juniorů a juniorek v rapid šachu 2024"]
[Site "Hotel Fit Fun, Harrachov, Czech Republic"]
[Date "2024.09.21"]
[Round "6.7"]
[White "Pressler Tobias"]
[Black "Sulcova Tereza Radmila"]
[Result "1-0"]
[TimeControl "20+5"]
[WhiteFideId "23715359"]
[BlackFideId "395196"]
[WhiteElo "1992"]
[BlackElo "1800"]

1. e4 {[%clk 00:20:09]} {[%emt 00:00:01]} e6 {[%clk 00:20:03]} {[%emt
00:00:08]} 2. d4 {[%clk 00:20:11]} {[%emt 00:00:03]} d5 {[%clk 00:20:06]}
{[%emt 00:00:02]} 3. Nd2 {[%clk 00:20:12]} {[%emt 00:00:04]} Nf6 {[%clk
00:20:07]} {[%emt 00:00:03]} 4. e5 {[%clk 00:19:46]} {[%emt 00:00:32]} Nfd7
{[%clk 00:20:10]} {[%emt 00:00:02]} 5. Bd3 {[%clk 00:19:28]} {[%emt 00:00:22]}
c5 {[%clk 00:20:11]} {[%emt 00:00:03]} 6. c3 {[%clk 00:19:32]} {[%emt
00:00:01]} Nc6 {[%clk 00:20:14]} {[%emt 00:00:02]} 7. Ne2 {[%clk 00:19:16]}
{[%emt 00:00:22]} Qb6 {[%clk 00:20:16]} {[%emt 00:00:02]} 8. Nf3 {[%clk
00:19:17]} {[%emt 00:00:04]} f6 {[%clk 00:19:55]} {[%emt 00:00:27]} 9. exf6
{[%clk 00:18:47]} {[%emt 00:00:35]} Nxf6 {[%clk 00:19:58]} {[%emt 00:00:03]} 10.
O-O {[%clk 00:18:41]} {[%emt 00:00:10]} Bd6 {[%clk 00:20:00]} {[%emt 00:00:02]}
11. dxc5 {[%clk 00:18:02]} {[%emt 00:00:44]} Bxc5 {[%clk 00:20:02]} {[%emt
00:00:03]} 12. b4 {[%clk 00:18:05]} {[%emt 00:00:03]} Bd6 {[%clk 00:19:55]}
{[%emt 00:00:11]} 13. b5 {[%clk 00:18:04]} {[%emt 00:00:06]} Ne7 {[%clk
00:19:39]} {[%emt 00:00:22]} 14. Bf4 {[%clk 00:15:58]} {[%emt 00:02:11]} Bxf4
{[%clk 00:19:09]} {[%emt 00:00:35]} 15. Nxf4 {[%clk 00:16:01]} {[%emt
00:00:02]} Qd6 {[%clk 00:19:12]} {[%emt 00:00:01]} 16. Ne2 {[%clk 00:15:16]}
{[%emt 00:00:50]} e5 {[%clk 00:19:04]} {[%emt 00:00:14]} 17. Bc2 {[%clk
00:15:06]} {[%emt 00:00:15]} Bg4 {[%clk 00:18:58]} {[%emt 00:00:10]} 18. Nd2
{[%clk 00:14:40]} {[%emt 00:00:32]} O-O {[%clk 00:18:04]} {[%emt 00:00:59]} 19.
h3 {[%clk 00:14:44]} {[%emt 00:00:01]} Bh5 {[%clk 00:17:57]} {[%emt 00:00:12]}
20. Bb3 {[%clk 00:14:24]} {[%emt 00:00:24]} Kh8 {[%clk 00:17:56]} {[%emt
00:00:06]} 21. Re1 {[%clk 00:14:22]} {[%emt 00:00:08]} Rac8 {[%clk 00:17:57]}
{[%emt 00:00:04]} 22. Rc1 {[%clk 00:13:28]} {[%emt 00:00:59]} Qd7 {[%clk
00:16:58]} {[%emt 00:01:04]} 23. c4 {[%clk 00:13:16]} {[%emt 00:00:17]} d4
{[%clk 00:16:59]} {[%emt 00:00:04]} 24. f3 {[%clk 00:12:55]} {[%emt 00:00:26]}
Nf5 {[%clk 00:16:33]} {[%emt 00:00:31]} 25. Nf1 {[%clk 00:12:29]} {[%emt
00:00:30]} Nh4 {[%clk 00:15:51]} {[%emt 00:00:48]} 26. Neg3 {[%clk 00:12:09]}
{[%emt 00:00:25]} Qe8 {[%clk 00:15:12]} {[%emt 00:00:44]} 27. Nxh5 {[%clk
00:10:59]} {[%emt 00:01:14]} Nxh5 {[%clk 00:14:54]} {[%emt 00:00:23]} 28. Re4
{[%clk 00:09:15]} {[%emt 00:01:49]} Nf4 {[%clk 00:13:19]} {[%emt 00:01:41]} 29.
Rc2 {[%clk 00:08:38]} {[%emt 00:00:42]} Qg6 {[%clk 00:12:55]} {[%emt 00:00:29]}
30. Kh1 {[%clk 00:07:11]} {[%emt 00:01:32]} Nfxg2 {[%clk 00:12:42]} {[%emt
00:00:18]} 31. Rg4 {[%clk 00:07:09]} {[%emt 00:00:07]} Qh5 {[%clk 00:11:47]}
{[%emt 00:01:00]} 32. Rcxg2 {[%clk 00:06:58]} {[%emt 00:00:15]} Nxg2 {[%clk
00:11:43]} {[%emt 00:00:10]} 33. Kxg2 {[%clk 00:06:57]} {[%emt 00:00:06]} Rf6
{[%clk 00:11:22]} {[%emt 00:00:25]} 34. Ng3 {[%clk 00:06:55]} {[%emt 00:00:07]}
Qe8 {[%clk 00:10:44]} {[%emt 00:00:43]} 35. Ne4 {[%clk 00:06:52]} {[%emt
00:00:09]} Rh6 {[%clk 00:10:29]} {[%emt 00:00:20]} 36. Qe1 {[%clk 00:06:16]}
{[%emt 00:00:41]} a6 {[%clk 00:09:34]} {[%emt 00:01:00]} 37. bxa6 {[%clk
00:06:06]} {[%emt 00:00:15]} Rxa6 {[%clk 00:09:37]} {[%emt 00:00:02]} 38. Qg3
{[%clk 00:06:03]} {[%emt 00:00:09]} Rc7 {[%clk 00:09:40]} {[%emt 00:00:02]} 39.
c5 {[%clk 00:06:00]} {[%emt 00:00:08]} b6 {[%clk 00:06:39]} {[%emt 00:03:06]}
40. Nd6 {[%clk 00:06:03]} {[%emt 00:00:01]} Qf8 {[%clk 00:06:19]} {[%emt
00:00:25]} 41. Qxe5 {[%clk 00:05:50]} {[%emt 00:00:18]} bxc5 {[%clk 00:06:18]}
{[%emt 00:00:06]} 42. Rf4 {[%clk 00:05:17]} {[%emt 00:00:37]} Qd8 {[%clk
00:05:12]} {[%emt 00:01:11]} 43. Rf7 {[%clk 00:05:07]} {[%emt 00:00:16]} 1-0



[ePGN "0.1;DGT LiveChess/2.2.6"]

[Event "MČR juniorů a juniorek v rapid šachu 2024"]
[Site "Hotel Fit Fun, Harrachov, Czech Republic"]
[Date "2024.09.21"]
[Round "6.8"]
[White "Sichrovsky Tomas"]
[Black "Housa Vojtech"]
[Result "1-0"]
[TimeControl "20+5"]
[WhiteFideId "23704730"]
[BlackFideId "23736364"]
[WhiteElo "1928"]
[BlackElo "1691"]

1. d4 {[%clk 00:20:08]} {[%emt 00:00:02]} Nf6 {[%clk 00:20:09]} {[%emt
00:00:01]} 2. c4 {[%clk 00:20:12]} g6 {[%clk 00:20:13]} {[%emt 00:00:02]} 3.
Nc3 {[%clk 00:20:16]} Bg7 {[%clk 00:20:16]} {[%emt 00:00:02]} 4. e4 {[%clk
00:20:20]} {[%emt 00:00:01]} d6 {[%clk 00:20:20]} 5. Nf3 {[%clk 00:20:24]}
{[%emt 00:00:01]} O-O {[%clk 00:20:23]} {[%emt 00:00:02]} 6. Be2 {[%clk
00:20:28]} Nfd7 {[%clk 00:20:24]} {[%emt 00:00:05]} 7. O-O {[%clk 00:20:28]}
{[%emt 00:00:04]} e5 {[%clk 00:20:28]} {[%emt 00:00:01]} 8. d5 {[%clk
00:20:32]} f5 {[%clk 00:20:31]} {[%emt 00:00:03]} 9. Ng5 {[%clk 00:20:25]}
{[%emt 00:00:11]} Nf6 {[%clk 00:20:06]} {[%emt 00:00:31]} 10. f3 {[%clk
00:20:16]} {[%emt 00:00:13]} h6 {[%clk 00:19:50]} {[%emt 00:00:20]} 11. Ne6
{[%clk 00:20:17]} {[%emt 00:00:05]} Bxe6 12. dxe6 {[%clk 00:20:19]} c6 {[%clk
00:19:19]} {[%emt 00:00:40]} 13. exf5 {[%clk 00:20:05]} {[%emt 00:00:19]} gxf5
{[%clk 00:19:08]} {[%emt 00:00:15]} 14. Qc2 {[%clk 00:19:12]} {[%emt 00:00:58]}
Ne8 {[%clk 00:17:21]} {[%emt 00:01:51]} 15. Bd3 {[%clk 00:19:05]} {[%emt
00:00:13]} Qf6 {[%clk 00:16:56]} {[%emt 00:00:31]} 16. Qb3 {[%clk 00:18:29]}
{[%emt 00:00:41]} b6 {[%clk 00:15:49]} {[%emt 00:01:13]} 17. c5 {[%clk
00:18:06]} {[%emt 00:00:26]} b5 {[%clk 00:14:53]} {[%emt 00:01:02]} 18. cxd6
{[%clk 00:17:11]} {[%emt 00:01:01]} Nxd6 {[%clk 00:14:44]} {[%emt 00:00:14]} 19.
Be3 {[%clk 00:17:10]} {[%emt 00:00:06]} Na6 {[%clk 00:13:51]} {[%emt 00:00:59]}
20. Qa3 {[%clk 00:15:51]} {[%emt 00:01:24]} b4 {[%clk 00:12:56]} {[%emt
00:00:59]} 21. Qxa6 {[%clk 00:15:54]} {[%emt 00:00:01]} bxc3 {[%clk 00:12:44]}
{[%emt 00:00:18]} 22. bxc3 {[%clk 00:15:53]} {[%emt 00:00:06]} Qxe6 {[%clk
00:11:54]} {[%emt 00:00:55]} 23. c4 {[%clk 00:15:56]} {[%emt 00:00:03]} Qd7
{[%clk 00:10:55]} {[%emt 00:01:03]} 24. Rad1 {[%clk 00:15:36]} {[%emt
00:00:25]} Rfd8 {[%clk 00:09:34]} {[%emt 00:01:25]} 25. c5 {[%clk 00:13:54]}
{[%emt 00:01:47]} Nf7 {[%clk 00:09:09]} {[%emt 00:00:31]} 26. Bc4 {[%clk
00:13:51]} {[%emt 00:00:09]} Qxd1 {[%clk 00:08:20]} {[%emt 00:00:53]} 27. Rxd1
{[%clk 00:13:54]} {[%emt 00:00:01]} Rxd1+ {[%clk 00:08:24]} {[%emt 00:00:02]}
28. Kf2 {[%clk 00:13:59]} Rad8 {[%clk 00:08:03]} {[%emt 00:00:27]} 29. f4
{[%clk 00:11:43]} {[%emt 00:02:20]} exf4 {[%clk 00:07:12]} {[%emt 00:00:56]} 30.
Bxf4 {[%clk 00:11:23]} {[%emt 00:00:25]} Bd4+ {[%clk 00:06:59]} {[%emt
00:00:19]} 31. Ke2 {[%clk 00:11:17]} {[%emt 00:00:07]} Bxc5 {[%clk 00:06:33]}
{[%emt 00:00:33]} 32. Qxc6 {[%clk 00:11:01]} {[%emt 00:00:22]} Bd6 {[%clk
00:05:38]} {[%emt 00:01:00]} 33. Kxd1 {[%clk 00:09:06]} {[%emt 00:02:00]} Bxf4+
{[%clk 00:05:40]} {[%emt 00:00:01]} 34. Ke2 {[%clk 00:09:09]} {[%emt 00:00:04]}
Kg7 {[%clk 00:05:19]} {[%emt 00:00:27]} 35. Qe6 {[%clk 00:07:51]} {[%emt
00:01:22]} Rd2+ {[%clk 00:03:42]} {[%emt 00:01:42]} 36. Ke1 {[%clk 00:07:03]}
{[%emt 00:00:54]} Nd6 {[%clk 00:03:09]} {[%emt 00:00:37]} 37. g3 {[%clk
00:05:38]} {[%emt 00:01:30]} Bg5 {[%clk 00:01:44]} {[%emt 00:01:31]} 38. h4
{[%clk 00:05:41]} {[%emt 00:00:01]} Rd4 {[%clk 00:00:40]} {[%emt 00:01:08]} 39.
Qg8+ {[%clk 00:04:42]} {[%emt 00:01:05]} Kf6 {[%clk 00:00:18]} {[%emt
00:00:27]} 40. hxg5+ {[%clk 00:04:45]} {[%emt 00:00:02]} hxg5 {[%clk 00:00:22]}
{[%emt 00:00:01]} 41. Qh8+ {[%clk 00:04:49]} 1-0



[ePGN "0.1;DGT LiveChess/2.2.6"]